Cogmind - Beta 10.2 @@@ ROGUE MODE // 2021.10.03 @ 22:13:03 Player: Minty Result: Destroyed by G-34 Mercenary with Small Laser Performance ------------- Evolutions (0) 0 Regions Visited (4) 800 Robots Destroyed (7) 35 Value Destroyed (190) 190 Prototype IDs (24) 480 Alien Tech Used (0) 0 Bonus (300) 300 TOTAL SCORE: 1805 Bonus ------- Aligned with FarCom 300 Cogmind --------- Core Integrity 0/250 Matter 300/300 Energy 100/100 System Corruption 2% Temperature Cool (6) Movement Walking (120) Location -9/Mines Parts ------- > --- POWER (1) -------- (None) > --- PROPULSION (2) --- Aluminum Leg > --- UTILITY (2) ------ Small Storage Unit Experimental Sensor Array > --- WEAPON (2) ------- Hammer Mining Claw > --- INVENTORY (6) ---- Improved Heat Sink XL Autogun Array Peak State ------------ > --- POWER ------------ Ion Engine > --- PROPULSION ------- Aluminum Leg Aluminum Leg > --- UTILITY ---------- Small Storage Unit Experimental Sensor Array > --- WEAPON ----------- Medium Laser Light Assault Rifle > --- INVENTORY -------- XL Autogun Array Hammer Mining Claw [Rating: 15] Favorites ----------- Power Ion Engine Engine Ion Engine Propulsion Aluminum Leg Leg Aluminum Leg Utility Small Storage Unit Device Experimental Sensor Array Storage Small Storage Unit Weapon Medium Laser Energy Gun Medium Laser Ballistic Gun Light Assault Rifle Impact Weapon Hammer Slashing Weapon Mining Claw Build | -11 -10 -10 -10 -9 ------- Run | Scr Mat Min Exi Min Slots Evolved . | . . . . . Power . | . . . . . Propulsion . | . . . . . Utility . | . . . . . Weapon . | . . . . . Parts Attached 7 | . . 3 . 4 Power . | . . . . . Engine . | . . . . . Core . | . . . . . Reactor . | . . . . . Propulsion 3 | . . 1 . 2 Treads . | . . . . . Leg 3 | . . 1 . 2 Wheel . | . . . . . Hover . | . . . . . Flight . | . . . . . Utility 1 | . . 1 . . Device 1 | . . 1 . . Storage . | . . . . . Processor . | . . . . . Hackware . | . . . . . Protection . | . . . . . Artifact . | . . . . . Weapon 3 | . . 1 . 2 Energy Gun 1 | . . 1 . . Energy Cannon . | . . . . . Ballistic Gun . | . . . . . Ballistic Cannon . | . . . . . Launcher . | . . . . . Special Weapon . | . . . . . Impact Weapon 1 | . . . . 1 Slashing Weapon 1 | . . . . 1 Piercing Weapon . | . . . . . Special Melee Weapon . | . . . . . Unidentified Prototypes 1 | . . 1 . . Parts Lost 6 | . . . . 6 Power 1 | . . . . 1 Propulsion 3 | . . . . 3 Utility . | . . . . . Weapon 2 | . . . . 2 Highest Loss Streak 5 | . . . . 5 Average Slot Usage (%) 89 | . 85 88 100 86 Engine 10 | . 14 14 14 2 Leg 27 | . 28 28 28 26 Device 8 | . . 3 14 14 Storage 14 | . 14 14 14 14 Energy Gun 10 | . 14 14 14 2 Ballistic Gun 10 | . 14 14 14 2 Impact Weapon 3 | . . . . 11 Slashing Weapon 3 | . . . . 11 Naked Turns . | . . . . . Heaviest Build 13 | 12 12 13 13 13 Greatest Support 20 | 20 20 20 20 20 Greatest Overweight (x) 2 | . . . . 2 Average Overweight (x) . | . . . . . Largest Inventory Capacity 6 | 6 6 6 6 6 Average Capacity 6 | 6 6 6 6 6 Most Carried 6 | 5 6 6 6 6 Average Carried 5 | 4 5 5 5 5 Final Capacity 6 | 6 6 6 6 6 Final Carried 6 | 4 6 6 6 5 Class Distribution -------------------- 68% | Mutant 26% | Assassin 4% | Skirmisher Dominant Class ---------------- Mutant | -10/Materials Mutant | -10/Mines Mutant | -10/Exiles Assassin | -9/Mines Resources | -11 -10 -10 -10 -9 ----------- Run | Scr Mat Min Exi Min Matter Collected 283 | 200 7 36 . 40 Remotely . | . . . . . Salvage Created 299 | . 31 55 . 213 Parts 9 | . 3 3 . 3 Haulers Intercepted . | . . . . . Recyclers Shooed . | . . . . . Parts Field Recycled . | . . . . . Retrieved Matter . | . . . . . Parts Self-Destructed . | . . . . . Prevented . | . . . . . Kills | -11 -10 -10 -10 -9 ------- Run | Scr Mat Min Exi Min Combat Hostiles Destroyed 5 | . 1 1 . 3 Melee 1 | . . . . 1 Guns 4 | . 1 1 . 2 Classes Destroyed 3 | . 1 1 . 1 Worker 1 | . . 1 . . Recycler 1 | . . . . 1 Grunt 5 | . 1 1 . 3 Best Kill Streak 2 | . 1 2 . 2 Combat Bots Only 2 | . 1 1 . 2 Max Kills in Single Turn 1 | . 1 1 . 1 Gunslinging . | . . . . . Exploded . | . . . . . Melee 1 | . . . . 1 Uniques/NPCs Destroyed . | . . . . . Combat | -11 -10 -10 -10 -9 -------- Run | Scr Mat Min Exi Min Damage Taken 947 | . 32 120 . 795 Core 255 | . 5 32 . 218 Absorbed by Shields . | . . . . . Core Remaining (%) 100 | 100 . . . . Volleys Fired 26 | . 10 7 . 9 Largest 2 | . 2 2 . 2 Hottest 70 | . 70 70 . 70 Shots Fired 51 | . 20 14 . 17 Gun 51 | . 20 14 . 17 Cannon . | . . . . . Launcher . | . . . . . Special . | . . . . . Kinetic 25 | . 10 7 . 8 Thermal 26 | . 10 7 . 9 Explosive . | . . . . . Electromagnetic . | . . . . . Robot Hit Streak 8 | . 5 6 . 8 Robot Miss Streak 2 | . 2 1 . 2 Penetration Max . | . . . . . Secondary Targets 1 | . . . . 1 Max Gunslinging Chain 1 | . . . . 1 Shots Hit Robots 56 | . 15 8 . 33 Core Hits 14 | . 3 5 . 6 Critical Hits 1 | . . . . 1 Critical Kills . | . . . . . Critical Parts Destroyed 1 | . . . . 1 Melee Attacks 26 | . . . . 26 Impact 21 | . . . . 21 Slashing 5 | . . . . 5 Piercing . | . . . . . Sneak Attacks 2 | . . . . 2 Combat Hostiles . | . . . . . Follow-up Attacks 4 | . . . . 4 Damage Inflicted 892 | . 177 140 . 575 Guns 429 | . 169 117 . 143 Cannons . | . . . . . Explosions . | . . . . . Melee 432 | . . . . 432 Ramming 31 | . 8 23 . . Kinetic 143 | . 70 29 . 44 Thermal 286 | . 99 88 . 99 Explosive . | . . . . . Electromagnetic . | . . . . . Impact 313 | . . . . 313 Slashing 119 | . . . . 119 Piercing . | . . . . . Highest Corruption 2 | . . 2 2 2 Average Corruption 2 | . . 2 2 2 Corruption Purged . | . . . . . Effects 11 | . . 7 2 2 Message Errors 1 | . . 1 . . Heat Flow Errors 2 | . . 1 1 . Energy Discharges 4 | . . 2 1 1 Data Loss (minor) 3 | . . 2 . 1 Targeting Errors 1 | . . 1 . . Overload Shots . | . . . . . Overflow Damage 28 | . . . . 28 Projectiles . | . . . . . Explosions . | . . . . . Melee 28 | . . . . 28 Knockbacks . | . . . . . Impact . | . . . . . Kinetic . | . . . . . Secondary . | . . . . . Self-Inflicted Damage 10 | . 4 6 . . Shots . | . . . . . Rammed 6 | . 1 5 . . Targets Rammed 9 | . 1 8 . . Kicked 3 | . . 3 . . Crushed . | . . . . . Highest Temperature 281 | . 92 281 229 251 Average Temperature 83 | . 38 69 119 131 Received Heat Transfer 525 | . 12 63 . 450 Effects 1 | . . . . 1 Energy Bleed 1 | . . . . 1 Siege Activations . | . . . . . Robots Corrupted . | . . . . . Combat Hostiles . | . . . . . Parts Fried 2 | . . . . 2 Impact Corruptions 2 | . . . . 2 Robots Melted . | . . . . . Combat Hostiles . | . . . . . Parts Melted 1 | . . . . 1 Heat Transferred 851 | . 296 259 . 296 Parts Sabotaged . | . . . . . Parts Stolen . | . . . . . Parts Stripped . | . . . . . Power Chain Reactions . | . . . . . Missiles Intercepted . | . . . . . Alert | -11 -10 -10 -10 -9 ------- Run | Scr Mat Min Exi Min Peak Influence 63 | . 35 63 . 55 Initial 13 | . . 13 . . Average 19 | . 25 19 . 18 Maximum Alert Level . | . . . . . Low Security (%) 100 | 100 100 100 . 100 Level 1 . | . . . . . Level 2 . | . . . . . Level 3 . | . . . . . Level 4 . | . . . . . Level 5 . | . . . . . High Security . | . . . . . Max Security . | . . . . . Squads Dispatched 1 | . . 1 . . Investigation 1 | . . 1 . . Extermination . | . . . . . Reinforcement . | . . . . . Assault . | . . . . . Garrison . | . . . . . Intercept . | . . . . . Construction Impeded . | . . . . . Haulers Reinforced . | . . . . . Stealth | -11 -10 -10 -10 -9 --------- Run | Scr Mat Min Exi Min Distress Signals . | . . . . . Communications Jammed . | . . . . . Distress Signals . | . . . . . Times Spotted 12 | . 2 4 . 6 Peak Tracking Total 3 | . 2 2 . 3 Tactical Retreats 2 | . . 1 . 1 Traps | -11 -10 -10 -10 -9 ------- Run | Scr Mat Min Exi Min Traps Triggered . | . . . . . Indirectly . | . . . . . Trap Hack Attempts . | . . . . . Triggered . | . . . . . Disarmed . | . . . . . Reprogrammed . | . . . . . Reused . | . . . . . Traps Extracted . | . . . . . Installed . | . . . . . Triggered . | . . . . . Machines | -11 -10 -10 -10 -9 ---------- Run | Scr Mat Min Exi Min Machines Disabled . | . . . . . Max in Single Turn . | . . . . . Machines Sabotaged . | . . . . . Garrisons Compromised . | . . . . . Overloaded Fab Kills . | . . . . . Fab Network Shutdowns . | . . . . . Hacking | -11 -10 -10 -10 -9 --------- Run | Scr Mat Min Exi Min Machines Accessed 2 | . . 1 1 . Terminals 1 | . . 1 . . Fabricators . | . . . . . Repair Stations . | . . . . . Recycling Units . | . . . . . Scanalyzers . | . . . . . Garrison Access . | . . . . . Total Hacks 2 | . . 1 1 . Successful 2 | . . 1 1 . Failed . | . . . . . Catastrophic . | . . . . . Database Lockouts . | . . . . . Manual 2 | . . 1 1 . Terminals 1 | . . 1 . . Fabricators . | . . . . . Repair Stations . | . . . . . Recycling Units . | . . . . . Scanalyzers . | . . . . . Garrison Access . | . . . . . Terminal Hacks 1 | . . . 1 . EX-Prototype ID Bank 1 | . . . 1 . Fabricator Hacks . | . . . . . Repair Station Hacks . | . . . . . Recycling Unit Hacks . | . . . . . Scanalyzer . | . . . . . Garrison Access Hacks . | . . . . . Unauthorized Hacks 1 | . . 1 . . Terminals 1 | . . 1 . . Search 1 | . . 1 . . Fabricators . | . . . . . Repair Stations . | . . . . . Recycling Units . | . . . . . Scanalyzers . | . . . . . Garrison Access . | . . . . . Data Cores Recovered . | . . . . . Used . | . . . . . Hacking Detections . | . . . . . Full Trace Events . | . . . . . Feedback Events . | . . . . . Feedback Blocked . | . . . . . Robot Schematics Acquired . | . . . . . Robots Built . | . . . . . Matter . | . . . . . Time . | . . . . . Total Robot Build Rating . | . . . . . Part Schematics Acquired . | . . . . . Parts Built . | . . . . . Matter . | . . . . . Time . | . . . . . Total Part Build Rating . | . . . . . Parts Repaired . | . . . . . Time . | . . . . . Parts Recycled . | . . . . . Recycled Matter . | . . . . . Retrieved Matter . | . . . . . Retrieved Components . | . . . . . Parts Scanalyzed . | . . . . . Part Schematics Acquired . | . . . . . Parts Damaged . | . . . . . Bothacking | -11 -10 -10 -10 -9 ------------ Run | Scr Mat Min Exi Min Used RIF Installer . | . . . . . Robots Hacked . | . . . . . Non-combat . | . . . . . Combat . | . . . . . Robot Hacks Applied . | . . . . . Relay Couplers Released . | . . . . . Robots Rewired . | . . . . . Allies Hacked . | . . . . . Hacks Repelled . | . . . . . Allies | -11 -10 -10 -10 -9 -------- Run | Scr Mat Min Exi Min Total Allies . | . . . . . Largest Group . | . . . . . Highest-Rated Group . | . . . . . Highest-Rated Ally . | . . . . . Total Orders . | . . . . . Ally Attacks . | . . . . . Total Damage . | . . . . . Kills . | . . . . . Allies Corrupted . | . . . . . Allies Melted . | . . . . . Intel | -11 -10 -10 -10 -9 ------- Run | Scr Mat Min Exi Min Robot Analysis Total . | . . . . . Derelict Logs Recovered 4 | . . 3 . 1 Drone Launches . | . . . . . Drone Recoveries . | . . . . . Exploration | -11 -10 -10 -10 -9 ------------- Run | Scr Mat Min Exi Min Turns Passed 1963 | 4 149 910 279 621 Spaces Moved 1422 | 3 93 730 231 365 Core 1 | . . . . 1 Treads . | . . . . . Legs 1421 | 3 93 730 231 364 Wheels . | . . . . . Hover . | . . . . . Flight . | . . . . . Fastest Speed 120 | 120 120 120 120 120 Average Speed 120 | 120 120 120 120 120 Slowest Speed 150 | 120 120 120 120 150 Overloaded Moves . | . . . . . Propulsion Burnouts . | . . . . . Robots Hopped . | . . . . . Cave-ins Triggered . | . . . . . Exploration Rate (%) 47 | 2 19 96 61 57 Regions Visited 4 Branch Regions 3 Pre-discovered Areas 3 | . . 3 . . Known Exits Taken . | . . . . . Unknown Exits Taken 4 | 1 1 1 1 . Scrap Searched 2 | . . 2 . . Spaces Dug . | . . . . . Terrain Destroyed . | . . . . . Melee . | . . . . . Projectile . | . . . . . AOE . | . . . . . Terrain Rammed . | . . . . . Walls Destroyed . | . . . . . Machines Disabled . | . . . . . Actions | -11 -10 -10 -10 -9 --------- Run | Scr Mat Min Exi Min Total 1596 | 4 112 749 235 496 Wait 103 | . 7 1 . 95 Move 1418 | 2 92 729 230 365 Hop . | . . . . . Pick Up 4 | . 2 . 1 1 Fast Attach 3 | . . 1 . 2 Attach 2 | . . . . 2 Detach . | . . . . . Swap 2 | . . 2 . . Drop 7 | 2 . 1 4 . Fire 26 | . 10 7 . 9 Melee 22 | . . . . 22 Ram . | . . . . . Kick 9 | . 1 8 . . Crush . | . . . . . Escape Stasis . | . . . . . Rewire . | . . . . . Trap . | . . . . . Miscellaneous . | . . . . . Route ------- -11/Scrapyard -10/Materials -10/Mines (discovered 3 exits: *Mat x2 / *Exi) -10/Exiles -9/Mines History --------- Turn | Location | Event 2 | -11/Scrapyard | Discovered new exit (range 2) 5 | -11/Scrapyard | Entered Materials 41 | -10/Materials | Discovered new exit (range 12) 121 | -10/Materials | Met 8R-AWN 154 | -10/Materials | Entered Mines 157 | -10/Mines | Followed 8R-AWN into the Mines 182 | -10/Mines | Learned location of Zion (-6) 313 | -10/Mines | Build established: Mutant 386 | -10/Mines | Discovered new exit (range 12) 622 | -10/Mines | Learned location of Storage (-7) 755 | -10/Mines | Discovered new exit (range 5) 831 | -10/Mines | Identified exit to Materials 844 | -10/Mines | Found a damaged Exp. Sensor Array with a note attached 847 | -10/Mines | Found Prototype Device 847 | -10/Mines | Identified Exp. Sensor Array 1064 | -10/Mines | Entered Exiles 1093 | -10/Exiles | Welcomed by 8R-AWN 1114 | -10/Exiles | Met EX-HEX 1150 | -10/Exiles | Met EX-BIN 1163 | -10/Exiles | Aligned with FarCom system 1164 | -10/Exiles | Given EX-Vault access code 1192 | -10/Exiles | Opened EX-Vault 1226 | -10/Exiles | Found XL Autogun Array 1252 | -10/Exiles | Warned to stay clear of 0b10 Research branches 1288 | -10/Exiles | Met EX-DEC 1333 | -10/Exiles | Discovered new exit (range 10) 1343 | -10/Exiles | Left Exiles lab with XL Autogun Array 1343 | -10/Exiles | Entered Mines 1370 | -9/Mines | Learned 2 Materials zone layouts 1408 | -9/Mines | Assembled infested the area 1509 | -9/Mines | Lost 5 parts (1p2n2w) 1743 | -9/Mines | Build established: Assassin 1901 | -9/Mines | Core integrity fell below 50% 1916 | -9/Mines | Core integrity fell below 20% 1964 | -9/Mines | Destroyed by G-34 Mercenary with Small Laser Last Messages --------------- 01685_ U-05 Engineer lays Concrete. 01745_ K-01 Serf collects debris. 01766_ U-05 Engineer lays Concrete. 01767_ U-05 Engineer builds a Wall. 01770_ Sneak attack on R-06 Scavenger. 01770_ Destroyed Com. Wheel. 01770_ R-06 Scavenger system corrupted by crushing effect. 01771_ R-06 Scavenger system terminally corrupted. 01771_ Tractor Beam fried. 01771_ Com. Wheel fried. 01798_ U-05 Engineer builds a Wall. 01811_ Sneak attack on K-01 Serf. 01811_ Destroyed Wheel. 01811_ K-01 Serf system corrupted by crushing effect. 01877_ U-05 Engineer lays Concrete. 01902_ Mining Claw follow-up attack on G-34 Mercenary. 01902_ G-34 Mercenary suffers critical hit. 01902_ Destroyed Aluminum Leg. 01913_ Mining Claw follow-up attack on G-34 Mercenary. 01923_ Aluminum Leg destroyed. Map ----- +----------------------------------------------------+ | | | | | ?????????????????????????????????????????????????? | | ?????????????????????????????????????????????????? | | ?????????????????????????????????????????????????? | | ?????????????????????????????????????????????????? | | ?????????????????????????????????????????????????? | | ???????????????????????###???????????????????????? | | ??????????????????????## ???###???????###??????? | | ???????????????????#### #?## ##??????# ??????? | | ??????????????????## ## ##?????# #??????? | | ??????????????????# ##????# #??????? | | ?????????????????# #????# #??????? | | ?????????????? d ### #????# #??????? | | ???????????????# ###??## ##???# #??????? | | ???????????????## ???????# #???# #??????? | | ????????????????## ????????## #???# #??????? | | ?????????????????# ????????## ##???# #??????? | | ?????????????????# ??????????# ##???# #??????? | | ??????????????????????????????# ##??# #??????? | | ??????????????????????????????## #??# #??????? | | ??????????????????????????????## #### #??????? | | ???????????????????????######## ## #??????? | | ???????????????????????# % ## ##??????? | | ???????????????????????# #### ## %#???????? | | ???????????????????????# @##### ## ###?????? | | ??????????????????????## ##### %## % #?????? | | ??????????????????????# #### ### #?????? | | ??????????????????????# gg ## ##?????? | | ??????????????????????# #### % ##??????? | | ?????????????????????## #??# % ##???????? | | ?????????????????????# #?# #????????? | | ?????????????????????# #?## #????????? | | ?????????????????????## #### ##???????? | | ??????????????????????### ##??????? | | ???????????????????????### % #??????? | | ???????????????????????# ## ####### #??????? | | ??????????????????????????# #?????## #??????? | | ??????????????????????????# #??????## #??????? | | ??????????????????????????# #???????# ####???? | | ??????????????????????????? #?????### #???? | | ???????????????????????????##????## #???? | | ?????????????????????????????????# #???? | | ???????????????????????????????### #???? | | ???????????????????????????????# # ##??? | | ??????????????????####?????????# ##?? | | #????????????????## #?????????# # | | ################# #????####### # | | #???## ## #### ###### | | #???# ##???###????? | +----------------------------------------------------+ Best States ------------- Heat Dissipation 25 Energy Generation 10 Energy Capacity 250 Matter Stores 300 Matter Capacity 300 Sight Range 16 Robot Scan Range 30 Terrain Scan Density 10 Evasion (%) 40 Item Schematics ----------------- None Robot Schematics ------------------ None Fabricated ------------ Nothing Alien Tech Used ----------------- None Achievements -------------- None Challenges ------------ None Game ------ Seed StealthCompactStreamer Manual? 0 Play Time 00:11:00 Cumulative 342.1 hours Start 2021.10.03 @ 22:03:51 End 2021.10.03 @ 22:13:03 Sessions 1 Manual Loads 0 Difficulty Rogue Special Mode None Game No. 234 Rogue 63 Adventurer 61 Explorer 110 Win Type - Total 19 Types 17/0/1/0/0/0/0/1/0 Lore% 63 Gallery% 86 Achievement% 65 Wizard Run 0 Options --------- ASCII 0 Keyboard 1 Movement Numpad Keybinds 0 Fullscreen 2 Font 18/X11 Map View 76x50 Tactical HUD 1 Map Filters NONE Filters NONE Steam 1 RUN: 244fc11f-2d4c-4d0a-95a5-8f4a1a85f685